[Event "Titled Tuesday Blitz March 07 Late 2023"]
[White "Rasulov, Vugar"]
[Black "Filgueira, Hernan"]
[WhiteFideId "13402390"]
[BlackFideId "101770"]
[WhiteElo "2509"]
[BlackElo "2363"]
[Result "1-0"]
[Round "04"]
[TimeControl "180+2"]
[Date "2023.03.07"]
[WhiteClock "0:00:55"]
[BlackClock "0:00:13"]

1. Nf3 {[%clk 0:02:12]}  d6 {[%clk 0:02:59]} 2. d4 {[%clk 0:02:12]}  Bg4 {[%clk 0:02:57]} 3. e4 {[%clk 0:02:11]}  Nf6 {[%clk 0:02:56]} 4. Nc3 {[%clk 0:02:11]}  c6 {[%clk 0:02:57]} 5. a4 {[%clk 0:02:09]}  e6 {[%clk 0:02:57]} 6. Be2 {[%clk 0:02:09]}  Be7 {[%clk 0:02:57]} 7. O-O {[%clk 0:02:10]}  d5 {[%clk 0:02:56]} 8. e5 {[%clk 0:02:07]}  Nfd7 {[%clk 0:02:56]} 9. Ne1 {[%clk 0:02:04]}  Bxe2 {[%clk 0:02:52]} 10. Nxe2 {[%clk 0:02:05]}  c5 {[%clk 0:02:52]} 11. c3 {[%clk 0:02:05]}  Nc6 {[%clk 0:02:52]} 12. f4 {[%clk 0:02:06]}  O-O {[%clk 0:02:46]} 13. Nf3 {[%clk 0:02:05]}  Qb6 {[%clk 0:02:30]} 14. Kh1 {[%clk 0:01:52]}  cxd4 {[%clk 0:02:26]} 15. cxd4 {[%clk 0:01:53]}  Rac8 {[%clk 0:02:16]} 16. Bd2 {[%clk 0:01:46]}  a5 {[%clk 0:01:46]} 17. Bc3 {[%clk 0:01:44]}  g6 {[%clk 0:01:42]} 18. g4 {[%clk 0:01:41]}  Bb4 {[%clk 0:01:38]} 19. f5 {[%clk 0:01:41]}  exf5 {[%clk 0:01:33]} 20. gxf5 {[%clk 0:01:41]}  Ne7 {[%clk 0:01:33]} 21. Ng3 {[%clk 0:01:37]}  Bxc3 {[%clk 0:01:29]} 22. bxc3 {[%clk 0:01:37]}  Rxc3 {[%clk 0:01:29]} 23. f6 {[%clk 0:01:38]}  Rxf3 {[%clk 0:01:08]} 24. Qxf3 {[%clk 0:01:31]}  Nc6 {[%clk 0:01:06]} 25. Qxd5 {[%clk 0:01:16]}  Ndb8 {[%clk 0:00:54]} 26. Rab1 {[%clk 0:01:11]}  Nb4 {[%clk 0:00:53]} 27. Qe4 {[%clk 0:01:09]}  Rd8 {[%clk 0:00:44]} 28. Nf5 {[%clk 0:01:07]}  Kh8 {[%clk 0:00:34]} 29. Nd6 {[%clk 0:01:06]}  Kg8 {[%clk 0:00:29]} 30. d5 {[%clk 0:00:58]}  N8a6 {[%clk 0:00:14]} 31. Nxf7 {[%clk 0:00:55]}  Kxf7 {[%clk 0:00:13]} 32. e6+ {[%clk 0:00:55]}  Kg8 {[%clk 0:00:13]} 33. f7+ {[%clk 0:00:55]} 1-0


[Site "https://www.chess.com"]

[Event "Titled Tuesday Blitz March 07 Late 2023"]
[White "Krallis, Christos"]
[Black "Rustemov, Alexander"]
[WhiteFideId "4298896"]
[BlackFideId "4119002"]
[WhiteElo "2243"]
[BlackElo "2856"]
[Result "0-1"]
[Round "04"]
[TimeControl "180+2"]
[Date "2023.03.07"]
[WhiteClock "0:00:03"]
[BlackClock "0:00:15"]

1. e4 {[%clk 0:02:55]}  e6 {[%clk 0:02:59]} 2. d4 {[%clk 0:02:41]}  d5 {[%clk 0:02:59]} 3. Nd2 {[%clk 0:02:38]}  dxe4 {[%clk 0:02:59]} 4. Nxe4 {[%clk 0:02:38]}  Bd7 {[%clk 0:03:00]} 5. Nf3 {[%clk 0:02:35]}  Bc6 {[%clk 0:03:00]} 6. Bd3 {[%clk 0:02:36]}  Nd7 {[%clk 0:03:01]} 7. Qe2 {[%clk 0:02:36]}  Ngf6 {[%clk 0:03:01]} 8. Bg5 {[%clk 0:02:36]}  Be7 {[%clk 0:03:00]} 9. Bxf6 {[%clk 0:02:34]}  Nxf6 {[%clk 0:02:59]} 10. O-O-O {[%clk 0:02:33]}  Qd5 {[%clk 0:02:55]} 11. Nc3 {[%clk 0:02:30]}  Qh5 {[%clk 0:02:52]} 12. Ne5 {[%clk 0:02:19]}  Qxe2 {[%clk 0:02:50]} 13. Bxe2 {[%clk 0:02:17]}  Be4 {[%clk 0:02:16]} 14. Nxe4 {[%clk 0:02:11]}  Nxe4 {[%clk 0:02:15]} 15. Nd3 {[%clk 0:02:11]}  O-O-O {[%clk 0:02:09]} 16. c3 {[%clk 0:02:09]}  c6 {[%clk 0:01:59]} 17. Bf3 {[%clk 0:02:07]}  Ng5 {[%clk 0:01:57]} 18. Be2 {[%clk 0:02:06]}  Ne4 {[%clk 0:01:52]} 19. Bf3 {[%clk 0:02:05]}  Nf6 {[%clk 0:01:50]} 20. Ne5 {[%clk 0:02:03]}  Rhf8 {[%clk 0:01:49]} 21. Kc2 {[%clk 0:01:59]}  Kc7 {[%clk 0:01:49]} 22. h4 {[%clk 0:01:57]}  Bd6 {[%clk 0:01:47]} 23. Nc4 {[%clk 0:01:55]}  Be7 {[%clk 0:01:41]} 24. g3 {[%clk 0:01:53]}  h5 {[%clk 0:01:37]} 25. Rhe1 {[%clk 0:01:52]}  g6 {[%clk 0:01:37]} 26. Ne5 {[%clk 0:01:51]}  Bd6 {[%clk 0:01:35]} 27. Nc4 {[%clk 0:01:51]}  Rd7 {[%clk 0:01:34]} 28. a4 {[%clk 0:01:49]}  b6 {[%clk 0:01:31]} 29. b4 {[%clk 0:01:43]}  Nd5 {[%clk 0:01:29]} 30. Kb3 {[%clk 0:01:33]}  Rfd8 {[%clk 0:01:29]} 31. b5 {[%clk 0:01:25]}  cxb5 {[%clk 0:01:20]} 32. axb5 {[%clk 0:01:24]}  Kb8 {[%clk 0:01:08]} 33. Ra1 {[%clk 0:01:01]}  Nc7 {[%clk 0:01:02]} 34. Bc6 {[%clk 0:00:58]}  Re7 {[%clk 0:01:02]} 35. Ra4 {[%clk 0:00:52]}  a5 {[%clk 0:00:52]} 36. Nxb6 {[%clk 0:00:45]}  Nxb5 {[%clk 0:00:45]} 37. Rxa5 {[%clk 0:00:36]}  Na7 {[%clk 0:00:40]} 38. Bf3 {[%clk 0:00:26]}  Bc7 {[%clk 0:00:40]} 39. Ra6 {[%clk 0:00:22]}  Rd6 {[%clk 0:00:40]} 40. c4 {[%clk 0:00:15]}  Rxb6+ {[%clk 0:00:40]} 41. Rxb6+ {[%clk 0:00:15]}  Bxb6 {[%clk 0:00:41]} 42. c5 {[%clk 0:00:15]}  Bd8 {[%clk 0:00:40]} 43. Kc4 {[%clk 0:00:15]}  Kc8 {[%clk 0:00:39]} 44. Ra1 {[%clk 0:00:13]}  Rc7 {[%clk 0:00:38]} 45. Ra6 {[%clk 0:00:11]}  Kd7 {[%clk 0:00:38]} 46. d5 {[%clk 0:00:12]}  exd5+ {[%clk 0:00:38]} 47. Bxd5 {[%clk 0:00:11]}  Ke7 {[%clk 0:00:38]} 48. Ra1 {[%clk 0:00:06]}  Kf8 {[%clk 0:00:37]} 49. Ra6 {[%clk 0:00:06]}  Be7 {[%clk 0:00:36]} 50. c6 {[%clk 0:00:05]}  Nc8 {[%clk 0:00:32]} 51. Kb5 {[%clk 0:00:05]}  Kg7 {[%clk 0:00:30]} 52. Ra8 {[%clk 0:00:05]}  Bd6 {[%clk 0:00:30]} 53. Bg2 {[%clk 0:00:05]}  Kf6 {[%clk 0:00:26]} 54. Bh3 {[%clk 0:00:04]}  Ne7 {[%clk 0:00:26]} 55. Bd7 {[%clk 0:00:05]}  Nd5 {[%clk 0:00:22]} 56. Ra1 {[%clk 0:00:03]}  Be5 {[%clk 0:00:20]} 57. Re1 {[%clk 0:00:03]}  Ra7 {[%clk 0:00:17]} 58. f4 {[%clk 0:00:02]}  Nc7+ {[%clk 0:00:17]} 59. Kc4 {[%clk 0:00:02]}  Ba1 {[%clk 0:00:16]} 60. Rd1 {[%clk 0:00:02]}  Ne6 {[%clk 0:00:16]} 61. Kd3 {[%clk 0:00:03]}  Ra3+ {[%clk 0:00:16]} 62. Ke4 {[%clk 0:00:02]}  Nc7 {[%clk 0:00:14]} 63. Rc1 {[%clk 0:00:02]}  Bb2 {[%clk 0:00:14]} 64. Rc2 {[%clk 0:00:02]}  Bc3 {[%clk 0:00:14]} 65. Rc1 {[%clk 0:00:02]}  Ba5 {[%clk 0:00:15]} 66. Rc2 {[%clk 0:00:02]}  Bb6 {[%clk 0:00:15]} 67. Rb2 {[%clk 0:00:03]}  Re3# {[%clk 0:00:15]} 0-1


[Site "https://www.chess.com"]

[Event "Titled Tuesday Blitz March 07 Late 2023"]
[White "Remizov, Yaroslav"]
[Black "Marra, Eduardo da Costa"]
[WhiteFideId "34134015"]
[BlackFideId "2106990"]
[WhiteElo "2408"]
[BlackElo "2252"]
[Result "1/2-1/2"]
[Round "04"]
[TimeControl "180+2"]
[Date "2023.03.07"]
[WhiteClock "0:02:53"]
[BlackClock "0:02:26"]

1. e4 {[%clk 0:03:00]}  c5 {[%clk 0:02:58]} 2. Nf3 {[%clk 0:03:00]}  e6 {[%clk 0:02:58]} 3. d4 {[%clk 0:03:00]}  cxd4 {[%clk 0:02:59]} 4. Nxd4 {[%clk 0:03:00]}  Nf6 {[%clk 0:02:59]} 5. Bd3 {[%clk 0:03:00]}  Nc6 {[%clk 0:02:59]} 6. Nxc6 {[%clk 0:03:00]}  dxc6 {[%clk 0:03:00]} 7. O-O {[%clk 0:03:00]}  e5 {[%clk 0:03:01]} 8. f4 {[%clk 0:02:59]}  Bc5+ {[%clk 0:03:00]} 9. Kh1 {[%clk 0:03:00]}  Ng4 {[%clk 0:02:56]} 10. Qf3 {[%clk 0:02:54]}  Qh4 {[%clk 0:02:54]} 11. h3 {[%clk 0:02:54]}  Nf2+ {[%clk 0:02:26]} 12. Kh2 {[%clk 0:02:55]}  Ng4+ {[%clk 0:02:25]} 13. Kh1 {[%clk 0:02:55]}  Nf2+ {[%clk 0:02:26]} 14. Kh2 {[%clk 0:02:53]}  Ng4+ {[%clk 0:02:26]} 15. Kh1 {[%clk 0:02:53]} 1/2-1/2


[Site "https://www.chess.com"]

[Event "Titled Tuesday Blitz March 07 Late 2023"]
[White "Defend, Balint"]
[Black "Krzyzanowski, Marcin"]
[WhiteFideId "17004853"]
[BlackFideId "1132199"]
[WhiteElo "2546"]
[BlackElo "2471"]
[Result "0-1"]
[Round "04"]
[TimeControl "180+2"]
[Date "2023.03.07"]
[WhiteClock "0:00:20"]
[BlackClock "0:00:45"]

1. e4 {[%clk 0:02:57]}  c5 {[%clk 0:02:59]} 2. Nf3 {[%clk 0:02:55]}  Nc6 {[%clk 0:02:57]} 3. Bb5 {[%clk 0:02:55]}  g6 {[%clk 0:02:56]} 4. Bxc6 {[%clk 0:02:53]}  bxc6 {[%clk 0:02:53]} 5. d4 {[%clk 0:02:52]}  cxd4 {[%clk 0:02:53]} 6. Qxd4 {[%clk 0:02:53]}  f6 {[%clk 0:02:52]} 7. e5 {[%clk 0:02:53]}  Bg7 {[%clk 0:02:47]} 8. Qh4 {[%clk 0:02:47]}  fxe5 {[%clk 0:02:38]} 9. O-O {[%clk 0:02:46]}  d6 {[%clk 0:02:37]} 10. Ng5 {[%clk 0:02:37]}  h6 {[%clk 0:02:29]} 11. Nf3 {[%clk 0:02:21]}  Nf6 {[%clk 0:02:25]} 12. Nc3 {[%clk 0:02:12]}  g5 {[%clk 0:02:22]} 13. Qc4 {[%clk 0:02:07]}  Bd7 {[%clk 0:02:12]} 14. Qd3 {[%clk 0:02:03]}  O-O {[%clk 0:02:11]} 15. Be3 {[%clk 0:01:48]}  Qe8 {[%clk 0:02:03]} 16. Rad1 {[%clk 0:01:42]}  Bg4 {[%clk 0:02:01]} 17. Qc4+ {[%clk 0:01:31]}  d5 {[%clk 0:01:58]} 18. Qe2 {[%clk 0:01:04]}  e4 {[%clk 0:01:54]} 19. Nxe4 {[%clk 0:00:51]}  Nxe4 {[%clk 0:01:41]} 20. h3 {[%clk 0:00:48]}  Bxf3 {[%clk 0:01:38]} 21. gxf3 {[%clk 0:00:49]}  Nf6 {[%clk 0:01:31]} 22. Bc5 {[%clk 0:00:48]}  Rf7 {[%clk 0:01:30]} 23. f4 {[%clk 0:00:47]}  Ne4 {[%clk 0:01:28]} 24. fxg5 {[%clk 0:00:45]}  Nxc5 {[%clk 0:01:21]} 25. Qe3 {[%clk 0:00:35]}  d4 {[%clk 0:01:13]} 26. Qg3 {[%clk 0:00:26]}  Ne4 {[%clk 0:01:12]} 27. Qg4 {[%clk 0:00:25]}  Nxg5 {[%clk 0:01:10]} 28. Kh1 {[%clk 0:00:26]}  Qc8 {[%clk 0:01:06]} 29. f4 {[%clk 0:00:25]}  Qxg4 {[%clk 0:01:05]} 30. hxg4 {[%clk 0:00:26]}  Ne4 {[%clk 0:01:06]} 31. Kg2 {[%clk 0:00:26]}  Nd6 {[%clk 0:01:02]} 32. Rde1 {[%clk 0:00:26]}  Nc4 {[%clk 0:01:02]} 33. Rf3 {[%clk 0:00:23]}  Nxb2 {[%clk 0:00:58]} 34. Re6 {[%clk 0:00:22]}  Rc8 {[%clk 0:00:55]} 35. f5 {[%clk 0:00:20]}  Nc4 {[%clk 0:00:55]} 36. Rb3 {[%clk 0:00:20]}  Ne3+ {[%clk 0:00:54]} 37. Kf3 {[%clk 0:00:21]}  Nxc2 {[%clk 0:00:53]} 38. Rb7 {[%clk 0:00:21]}  d3 {[%clk 0:00:50]} 39. Rxa7 {[%clk 0:00:20]}  Nd4+ {[%clk 0:00:51]} 40. Ke4 {[%clk 0:00:19]}  Nxe6 {[%clk 0:00:51]} 41. fxe6 {[%clk 0:00:20]}  Rf6 {[%clk 0:00:46]} 42. Kxd3 {[%clk 0:00:20]}  Rxe6 {[%clk 0:00:46]} 43. Kc4 {[%clk 0:00:20]}  Re4+ {[%clk 0:00:45]} 44. Kc5 {[%clk 0:00:20]}  Bd4+ {[%clk 0:00:45]} 0-1


[Site "https://www.chess.com"]

[Event "Titled Tuesday Blitz March 07 Late 2023"]
[White "Baskakov, Egor"]
[Black "Reprintsev, Alexander"]
[WhiteFideId "24197866"]
[BlackFideId "14100541"]
[WhiteElo "2212"]
[BlackElo "2229"]
[Result "1-0"]
[Round "04"]
[TimeControl "180+2"]
[Date "2023.03.07"]
[WhiteClock "0:01:39"]
[BlackClock "0:00:32"]

1. e4 {[%clk 0:03:00]}  e5 {[%clk 0:02:55]} 2. Nc3 {[%clk 0:03:00]}  Nc6 {[%clk 0:02:51]} 3. g3 {[%clk 0:03:00]}  Bc5 {[%clk 0:02:51]} 4. Bg2 {[%clk 0:03:01]}  d6 {[%clk 0:02:50]} 5. Nge2 {[%clk 0:02:59]}  Nge7 {[%clk 0:02:50]} 6. O-O {[%clk 0:02:58]}  Bg4 {[%clk 0:02:50]} 7. h3 {[%clk 0:02:58]}  Bh5 {[%clk 0:02:50]} 8. d3 {[%clk 0:02:56]}  O-O {[%clk 0:02:48]} 9. Kh2 {[%clk 0:02:55]}  f5 {[%clk 0:02:38]} 10. exf5 {[%clk 0:02:55]}  Bxe2 {[%clk 0:02:38]} 11. Qxe2 {[%clk 0:02:54]}  Nxf5 {[%clk 0:02:38]} 12. f4 {[%clk 0:02:54]}  Ncd4 {[%clk 0:02:36]} 13. Qd1 {[%clk 0:02:54]}  c6 {[%clk 0:02:35]} 14. Ne4 {[%clk 0:02:53]}  Bb6 {[%clk 0:02:29]} 15. fxe5 {[%clk 0:02:52]}  dxe5 {[%clk 0:02:29]} 16. c3 {[%clk 0:02:42]}  Ne6 {[%clk 0:02:29]} 17. Qb3 {[%clk 0:02:42]}  Qd7 {[%clk 0:02:14]} 18. Ng5 {[%clk 0:02:39]}  Rae8 {[%clk 0:02:13]} 19. h4 {[%clk 0:02:30]}  Kh8 {[%clk 0:01:33]} 20. Nxe6 {[%clk 0:02:25]}  Rxe6 {[%clk 0:01:33]} 21. Bg5 {[%clk 0:02:19]}  Ree8 {[%clk 0:01:05]} 22. Qc4 {[%clk 0:01:58]}  h6 {[%clk 0:01:03]} 23. Bd2 {[%clk 0:01:50]}  Be3 {[%clk 0:01:00]} 24. Be1 {[%clk 0:01:49]}  Nd6 {[%clk 0:00:47]} 25. Rxf8+ {[%clk 0:01:47]}  Rxf8 {[%clk 0:00:46]} 26. Qa4 {[%clk 0:01:41]}  Qg4 {[%clk 0:00:32]} 27. Qxg4 {[%clk 0:01:39]} 1-0


[Site "https://www.chess.com"]

[Event "Titled Tuesday Blitz March 07 Late 2023"]
[White "Risteski, Emil"]
[Black "Costachi, Mihnea"]
[WhiteFideId "15005267"]
[BlackFideId "1217518"]
[WhiteElo "2251"]
[BlackElo "2456"]
[Result "0-1"]
[Round "04"]
[TimeControl "180+2"]
[Date "2023.03.07"]
[WhiteClock "0:00:28"]
[BlackClock "0:00:47"]

1. c4 {[%clk 0:03:00]}  Nf6 {[%clk 0:02:59]} 2. Nc3 {[%clk 0:03:01]}  g6 {[%clk 0:02:59]} 3. e4 {[%clk 0:03:01]}  d6 {[%clk 0:03:00]} 4. d4 {[%clk 0:03:02]}  Bg7 {[%clk 0:03:01]} 5. Be2 {[%clk 0:03:03]}  O-O {[%clk 0:03:01]} 6. Be3 {[%clk 0:03:03]}  Na6 {[%clk 0:03:02]} 7. h4 {[%clk 0:03:03]}  c5 {[%clk 0:03:01]} 8. d5 {[%clk 0:03:03]}  e6 {[%clk 0:03:01]} 9. h5 {[%clk 0:03:03]}  exd5 {[%clk 0:03:02]} 10. exd5 {[%clk 0:03:04]}  Re8 {[%clk 0:02:56]} 11. h6 {[%clk 0:03:02]}  Bh8 {[%clk 0:02:56]} 12. Nh3 {[%clk 0:02:57]}  Bxh3 {[%clk 0:02:52]} 13. Rxh3 {[%clk 0:02:55]}  Ne4 {[%clk 0:02:52]} 14. Nxe4 {[%clk 0:02:53]}  Rxe4 {[%clk 0:02:53]} 15. Bd3 {[%clk 0:02:46]}  Re8 {[%clk 0:02:49]} 16. Qd2 {[%clk 0:02:38]}  Qf6 {[%clk 0:02:19]} 17. Rb1 {[%clk 0:02:32]}  Nb4 {[%clk 0:02:16]} 18. a3 {[%clk 0:02:25]}  Nxd3+ {[%clk 0:02:15]} 19. Qxd3 {[%clk 0:02:26]}  a6 {[%clk 0:02:13]} 20. b4 {[%clk 0:02:09]}  b6 {[%clk 0:02:00]} 21. Kf1 {[%clk 0:02:01]}  a5 {[%clk 0:01:54]} 22. bxc5 {[%clk 0:01:42]}  bxc5 {[%clk 0:01:54]} 23. Rf3 {[%clk 0:01:40]}  Qe7 {[%clk 0:01:30]} 24. a4 {[%clk 0:01:39]}  Rab8 {[%clk 0:01:26]} 25. Rb5 {[%clk 0:01:39]}  Rxb5 {[%clk 0:01:26]} 26. axb5 {[%clk 0:01:40]}  a4 {[%clk 0:01:26]} 27. Qa3 {[%clk 0:01:06]}  Ra8 {[%clk 0:01:13]} 28. Bc1 {[%clk 0:00:51]}  Qh4 {[%clk 0:01:07]} 29. Qd3 {[%clk 0:00:34]}  Qh1+ {[%clk 0:01:05]} 30. Ke2 {[%clk 0:00:33]}  Qxc1 {[%clk 0:01:05]} 31. Qe4 {[%clk 0:00:32]}  Qb2+ {[%clk 0:00:46]} 32. Kf1 {[%clk 0:00:28]}  Qa1+ {[%clk 0:00:46]} 33. Ke2 {[%clk 0:00:28]}  Qe5 {[%clk 0:00:47]} 0-1


[Site "https://www.chess.com"]

[Event "Titled Tuesday Blitz March 07 Late 2023"]
[White "Barp, Alberto"]
[Black "Do Nascimento,Christian Almeida"]
[WhiteFideId "872555"]
[BlackFideId "2143801"]
[WhiteElo "2313"]
[BlackElo "2125"]
[Result "0-1"]
[Round "04"]
[TimeControl "180+2"]
[Date "2023.03.07"]
[WhiteClock "0:00:02"]
[BlackClock "0:00:19"]

1. d4 {[%clk 0:02:40]}  Nf6 {[%clk 0:02:58]} 2. Nf3 {[%clk 0:02:39]}  d5 {[%clk 0:02:55]} 3. Bf4 {[%clk 0:02:38]}  e6 {[%clk 0:02:55]} 4. e3 {[%clk 0:02:37]}  Bd6 {[%clk 0:02:55]} 5. Nbd2 {[%clk 0:02:37]}  O-O {[%clk 0:02:55]} 6. c3 {[%clk 0:02:33]}  c5 {[%clk 0:02:53]} 7. Ne5 {[%clk 0:02:32]}  Nc6 {[%clk 0:02:53]} 8. Bd3 {[%clk 0:02:29]}  Qc7 {[%clk 0:02:51]} 9. Ndf3 {[%clk 0:02:11]}  Ne4 {[%clk 0:02:50]} 10. Nxc6 {[%clk 0:02:11]}  Bxf4 {[%clk 0:02:42]} 11. Nce5 {[%clk 0:02:03]}  Bxe5 {[%clk 0:02:39]} 12. Nxe5 {[%clk 0:02:01]}  f6 {[%clk 0:02:33]} 13. Nf3 {[%clk 0:02:01]}  Bd7 {[%clk 0:02:27]} 14. O-O {[%clk 0:01:57]}  Be8 {[%clk 0:02:27]} 15. c4 {[%clk 0:01:54]}  Bh5 {[%clk 0:02:24]} 16. cxd5 {[%clk 0:01:54]}  exd5 {[%clk 0:02:21]} 17. dxc5 {[%clk 0:01:54]}  Kh8 {[%clk 0:01:59]} 18. Rc1 {[%clk 0:01:49]}  Bxf3 {[%clk 0:01:58]} 19. gxf3 {[%clk 0:01:40]}  Ng5 {[%clk 0:01:54]} 20. f4 {[%clk 0:01:38]}  Ne4 {[%clk 0:01:51]} 21. Bxe4 {[%clk 0:01:33]}  dxe4 {[%clk 0:01:51]} 22. Qd6 {[%clk 0:01:29]}  Qf7 {[%clk 0:01:51]} 23. f5 {[%clk 0:01:23]}  Rae8 {[%clk 0:01:32]} 24. Kh1 {[%clk 0:01:05]}  Re5 {[%clk 0:01:32]} 25. Rcd1 {[%clk 0:00:57]}  Rfe8 {[%clk 0:01:28]} 26. Qd7 {[%clk 0:00:48]}  Qh5 {[%clk 0:01:27]} 27. Rg1 {[%clk 0:00:38]}  Qf3+ {[%clk 0:01:03]} 28. Rg2 {[%clk 0:00:39]}  Rg8 {[%clk 0:01:01]} 29. Rd2 {[%clk 0:00:19]}  h5 {[%clk 0:00:53]} 30. Kg1 {[%clk 0:00:15]}  Rxc5 {[%clk 0:00:48]} 31. Rd1 {[%clk 0:00:12]}  Rxf5 {[%clk 0:00:44]} 32. Rd2 {[%clk 0:00:05]}  Rg5 {[%clk 0:00:26]} 33. Rg3 {[%clk 0:00:02]}  h4 {[%clk 0:00:21]} 34. Rxg5 {[%clk 0:00:02]}  fxg5 {[%clk 0:00:22]} 35. Rd5 {[%clk 0:00:02]}  h3 {[%clk 0:00:19]} 0-1


[Site "https://www.chess.com"]

[Event "Titled Tuesday Blitz March 07 Late 2023"]
[White "Tristan, Leonardo"]
[Black "Berezin, Viktor"]
[WhiteFideId "113816"]
[BlackFideId "14107872"]
[WhiteElo "2461"]
[BlackElo "2310"]
[Result "0-1"]
[Round "04"]
[TimeControl "180+2"]
[Date "2023.03.07"]
[WhiteClock "0:00:02"]
[BlackClock "0:00:09"]

1. d4 {[%clk 0:03:00]}  Nf6 {[%clk 0:02:55]} 2. Nf3 {[%clk 0:03:01]}  g6 {[%clk 0:02:55]} 3. Bf4 {[%clk 0:03:01]}  Bg7 {[%clk 0:02:55]} 4. e3 {[%clk 0:03:02]}  O-O {[%clk 0:02:56]} 5. Be2 {[%clk 0:03:03]}  d6 {[%clk 0:02:56]} 6. O-O {[%clk 0:03:03]}  b6 {[%clk 0:02:55]} 7. h3 {[%clk 0:03:03]}  Bb7 {[%clk 0:02:56]} 8. Bh2 {[%clk 0:03:03]}  Nbd7 {[%clk 0:02:56]} 9. a4 {[%clk 0:03:04]}  a5 {[%clk 0:02:55]} 10. Nbd2 {[%clk 0:03:05]}  e6 {[%clk 0:02:54]} 11. c3 {[%clk 0:02:58]}  Qe7 {[%clk 0:02:54]} 12. Bd3 {[%clk 0:02:58]}  e5 {[%clk 0:02:53]} 13. e4 {[%clk 0:02:58]}  Nh5 {[%clk 0:02:47]} 14. Re1 {[%clk 0:02:57]}  Nf4 {[%clk 0:02:46]} 15. Bf1 {[%clk 0:02:44]}  Rae8 {[%clk 0:02:34]} 16. Nc4 {[%clk 0:02:44]}  h6 {[%clk 0:02:14]} 17. Qc2 {[%clk 0:02:43]}  Kh7 {[%clk 0:02:13]} 18. Ne3 {[%clk 0:01:56]}  Qf6 {[%clk 0:02:08]} 19. Ng4 {[%clk 0:01:17]}  Qe7 {[%clk 0:02:08]} 20. Bb5 {[%clk 0:01:16]}  c6 {[%clk 0:01:51]} 21. Bf1 {[%clk 0:01:14]}  h5 {[%clk 0:01:52]} 22. Ne3 {[%clk 0:01:14]}  Qf6 {[%clk 0:01:52]} 23. dxe5 {[%clk 0:01:06]}  dxe5 {[%clk 0:01:44]} 24. Nd2 {[%clk 0:01:04]}  Qg5 {[%clk 0:01:34]} 25. Kh1 {[%clk 0:01:03]}  Re7 {[%clk 0:01:12]} 26. Rad1 {[%clk 0:01:02]}  Kh8 {[%clk 0:01:12]} 27. Ndc4 {[%clk 0:01:01]}  Ne6 {[%clk 0:00:57]} 28. Nd6 {[%clk 0:00:54]}  Ba8 {[%clk 0:00:56]} 29. Bc4 {[%clk 0:00:43]}  Qf6 {[%clk 0:00:52]} 30. Rf1 {[%clk 0:00:32]}  Nf4 {[%clk 0:00:50]} 31. Rd2 {[%clk 0:00:24]}  Nc5 {[%clk 0:00:50]} 32. Rfd1 {[%clk 0:00:22]}  Nce6 {[%clk 0:00:50]} 33. Qb3 {[%clk 0:00:19]}  Rb8 {[%clk 0:00:44]} 34. Bxf4 {[%clk 0:00:13]}  exf4 {[%clk 0:00:34]} 35. Nf1 {[%clk 0:00:13]}  f3 {[%clk 0:00:31]} 36. g3 {[%clk 0:00:09]}  Ng5 {[%clk 0:00:19]} 37. h4 {[%clk 0:00:09]}  Nxe4 {[%clk 0:00:20]} 38. Nxf7+ {[%clk 0:00:09]}  Kh7 {[%clk 0:00:19]} 39. Rd6 {[%clk 0:00:09]}  Qf5 {[%clk 0:00:14]} 40. Nh2 {[%clk 0:00:05]}  Nxf2+ {[%clk 0:00:13]} 41. Kg1 {[%clk 0:00:04]}  Nxd1 {[%clk 0:00:14]} 42. Ng5+ {[%clk 0:00:05]}  Kh8 {[%clk 0:00:14]} 43. Qxd1 {[%clk 0:00:04]}  Rbe8 {[%clk 0:00:13]} 44. Nf7+ {[%clk 0:00:03]}  Kh7 {[%clk 0:00:11]} 45. Ng5+ {[%clk 0:00:03]}  Kh8 {[%clk 0:00:10]} 46. Qxf3 {[%clk 0:00:04]}  Re1+ {[%clk 0:00:10]} 47. Kg2 {[%clk 0:00:04]}  c5 {[%clk 0:00:10]} 48. Bd5 {[%clk 0:00:03]}  R8e2+ {[%clk 0:00:09]} 49. Qxe2 {[%clk 0:00:01]}  Rxe2+ {[%clk 0:00:10]} 50. Kg1 {[%clk 0:00:02]}  Re1+ {[%clk 0:00:08]} 51. Kg2 {[%clk 0:00:02]}  Bxd5+ {[%clk 0:00:08]} 52. Rxd5 {[%clk 0:00:02]}  Qxd5+ {[%clk 0:00:09]} 53. Nhf3 {[%clk 0:00:02]}  Re2+ {[%clk 0:00:09]} 54. Kh3 {[%clk 0:00:03]}  Re8 {[%clk 0:00:09]} 55. Nf7+ {[%clk 0:00:02]}  Qxf7 {[%clk 0:00:09]} 0-1


[Site "https://www.chess.com"]